bitfinex/quotes_SOLUSD_20250219
["timestamp","ask_amount","ask_price","bid_price","bid_amount"]
[1739991130528,83.0,169.81,169.76,24.00184172]
[1739991131143,83.0,169.81,169.76,29.89224172]
[1739991131633,4.6,169.84,169.76,29.89224172]
[1739991131634,87.6,169.84,169.79,23.97184172]
[1739991132821,4.6,169.84,169.79,23.97184172]
[1739991133215,28.57184172,169.84,169.77,5.8903]
[1739991133420,23.97184172,169.83,169.77,5.8903]
[1739991133640,23.97184172,169.83,169.77,29.86214172]
[1739991133919,28.57184172,169.84,169.78,23.97184172]
[1739991134116,0.063,169.85,169.8,23.97184172]
[1739991135014,0.063,169.85,169.81,5.8889]
[1739991135221,0.063,169.85,169.81,29.86074172]
[1739991135826,0.063,169.85,169.82,23.97184172]
[1739991136026,0.063,169.85,169.83,23.97184172]
[1739991136237,0.063,169.85,169.84,23.97184172]
[1739991136543,0.063,169.85,169.83,23.97184172]
[1739991136837,0.063,169.85,169.82,23.97184172]
[1739991137251,0.063,169.85,169.82,29.86034172]
[1739991138324,0.063,169.85,169.81,80.7]
[1739991138658,0.063,169.85,169.8,29.86084172]
[1739991138659,24.03484172,169.85,169.8,5.889]
[1739991138961,0.063,169.85,169.8,5.889]
[1739991139258,24.03484172,169.85,169.79,23.97184172]
[1739991139544,24.03484172,169.85,169.78,23.97184172]
[1739991141050,24.03484172,169.85,169.79,5.8896]
[1739991142251,24.03484172,169.85,169.79,23.97184172]
[1739991142571,23.97184172,169.82,169.76,86.6205]
[1739991142746,23.97184172,169.82,169.76,5.9205]
[1739991143443,106.97184172,169.83,169.76,24.00184172]
[1739991143947,106.97184172,169.82,169.76,0.03]
[1739991144245,23.97184172,169.8,169.76,0.03]
[1739991144750,83.0,169.79,169.76,0.03]
[1739991147240,83.0,169.79,169.76,29.89244172]
[1739991147547,83.0,169.79,169.78,23.97184172]
[1739991147932,83.0,169.83,169.78,23.97184172]
[1739991148126,83.0,169.83,169.77,23.97184172]
[1739991148327,23.97184172,169.82,169.76,24.00184172]
[1739991148527,23.97184172,169.82,169.76,0.03]
[1739991148735,107.53794886,169.83,169.76,0.03]
[1739991148736,23.97184172,169.8,169.76,0.03]
[1739991149148,23.97184172,169.79,169.76,0.03]
[1739991149551,23.97184172,169.78,169.76,0.03]
[1739991149744,106.97184172,169.78,169.76,0.03]
[1739991151357,112.86184172,169.78,169.76,0.03]
[1739991151745,83.0,169.78,169.76,0.03]
[1739991154036,83.0,169.81,169.76,0.03]
[1739991154244,83.0,169.81,169.76,24.00184172]
[1739991154437,83.0,169.81,169.77,23.97184172]
[1739991154643,83.0,169.83,169.78,23.97184172]
[1739991154846,87.56,169.83,169.78,23.97184172]
[1739991156158,87.56,169.83,169.81,23.97184172]
[1739991156335,0.063,169.85,169.82,23.97184172]
[1739991156537,0.063,169.85,169.83,23.97184172]
[1739991156754,0.063,169.85,169.82,23.97184172]
[1739991156959,0.063,169.85,169.81,23.97184172]
[1739991157165,0.063,169.85,169.83,23.97184172]
[1739991157458,0.063,169.85,169.82,23.97184172]
[1739991158246,0.063,169.85,169.84,23.97184172]
[1739991158655,0.063,169.85,169.83,29.86004172]
[1739991159267,0.063,169.85,169.83,5.8882]
[1739991160354,0.063,169.85,169.83,29.86004172]
[1739991163173,0.063,169.85,169.84,23.97184172]
[1739991165985,0.063,169.85,169.84,29.85964172]
[1739991171264,0.063,169.85,169.84,53.83148344]
[1739991172667,0.063,169.85,169.84,29.85964172]
[1739991173553,0.0001,169.85,169.84,135.53148344]
[1739991174667,0.0001,169.85,169.84,117.57139866]
[1739991175451,0.0001,169.85,169.84,116.57139866]
[1739991175650,0.0001,169.85,169.84,117.57139866]
[1739991176387,0.0001,169.85,169.84,80.7]
[1739991176681,20.0,169.84,169.77,5.8903]
[1739991176882,14.99179933,169.82,169.76,15.02179933]
[1739991177055,14.99179933,169.81,169.76,0.03]
[1739991177255,14.99179933,169.82,169.76,15.02179933]
[1739991177476,14.99179933,169.83,169.76,15.02179933]
[1739991178263,20.0,169.82,169.76,15.02179933]
[1739991178483,83.0,169.81,169.76,15.02179933]
[1739991178688,97.99179933,169.81,169.76,0.03]
[1739991179592,14.99179933,169.8,169.76,0.03]
[1739991179777,97.99179933,169.79,169.76,0.03]
[1739991179965,83.0,169.79,169.76,0.03]
[1739991181070,83.0,169.79,169.76,24.06385842]
[1739991181271,83.0,169.79,169.78,24.03385842]
[1739991181886,83.0,169.79,169.77,24.03385842]
[1739991182084,23.20974886,169.85,169.78,24.03385842]
[1739991182085,87.5601,169.85,169.78,24.03385842]
[1739991182287,87.5601,169.85,169.81,24.03385842]
[1739991182477,87.5601,169.85,169.8,24.03385842]
[1739991182787,24.03385842,169.83,169.76,80.73]
[1739991182961,24.03385842,169.83,169.77,24.03385842]
[1739991183488,93.4476,169.85,169.76,0.03]
[1739991183489,24.03385842,169.81,169.76,0.03]
[1739991183684,83.0,169.8,169.76,0.03]
[1739991183903,83.0,169.8,169.77,24.03385842]
[1739991184564,83.0,169.8,169.79,24.03385842]
[1739991184764,0.0001,169.85,169.79,24.03385842]
[1739991184966,83.0001,169.85,169.81,24.03385842]
[1739991186624,83.0001,169.85,169.79,5.8894]
[1739991186798,83.0001,169.85,169.8,24.03385842]
[1739991186997,83.0001,169.85,169.81,24.03385842]
[1739991187322,83.0001,169.85,169.8,24.03385842]
[1739991187694,83.0001,169.85,169.8,29.92305842]
[1739991187896,83.0001,169.85,169.81,24.03385842]
[1739991188522,83.0001,169.85,169.82,24.03385842]
[1739991189024,83.0001,169.85,169.83,24.03385842]
[1739991189210,0.0001,169.85,169.83,24.03385842]
[1739991190519,0.0001,169.85,169.82,29.92225842]
[1739991190917,0.0001,169.85,169.82,24.03385842]
[1739991191116,0.0001,169.85,169.81,24.03385842]
[1739991191323,24.03385842,169.83,169.76,0.03]
[1739991191621,24.03385842,169.83,169.77,24.03385842]
[1739991191824,24.03385842,169.83,169.78,24.03385842]
[1739991192319,29.92205842,169.83,169.77,24.03385842]
[1739991192496,107.03385842,169.82,169.76,24.06385842]
[1739991192696,24.03385842,169.81,169.76,0.03]
[1739991193292,89.1671,169.82,169.76,0.03]
[1739991193500,113.20095842,169.82,169.76,0.03]
[1739991193701,113.20095842,169.82,169.76,24.06385842]
[1739991193893,83.0,169.82,169.77,24.03385842]
[1739991195018,112.92245842,169.82,169.76,24.06385842]
[1739991195218,107.03385842,169.81,169.76,0.03]
[1739991195398,24.03385842,169.8,169.76,0.03]
[1739991195898,29.92335842,169.8,169.76,0.03]
[1739991197129,83.0,169.81,169.76,24.06385842]
[1739991197623,112.92275842,169.81,169.76,0.03]
[1739991198017,83.0,169.81,169.76,24.06385842]
[1739991198803,88.8889,169.81,169.76,24.06385842]
[1739991199352,112.92275842,169.81,169.76,0.03]
[1739991200023,88.8889,169.81,169.76,24.06385842]
[1739991200634,83.0,169.81,169.76,24.06385842]
[1739991200844,83.0,169.81,169.76,20.93827011]
[1739991201347,83.0,169.81,169.78,15.01797011]
[1739991202667,83.0,169.84,169.79,15.01797011]
[1739991202823,83.0,169.84,169.8,15.01797011]
[1739991203219,83.0,169.84,169.78,5.8898]
[1739991203420,83.0,169.84,169.8,15.01797011]
[1739991203930,83.0,169.84,169.79,15.01797011]
[1739991204237,83.0,169.84,169.8,15.01797011]
[1739991204841,83.0,169.84,169.81,15.01797011]
[1739991206138,83.0,169.84,169.83,15.01797011]
[1739991207449,0.0001,169.85,169.83,15.01797011]
[1739991207839,0.0001,169.85,169.82,20.90647011]
[1739991210135,0.0001,169.85,169.83,15.01797011]
[1739991210335,0.0001,169.85,169.82,20.90647011]
[1739991211362,0.0001,169.85,169.83,15.01797011]
[1739991211745,0.0001,169.85,169.83,20.90597011]
[1739991213738,0.0001,169.85,169.84,15.01797011]
[1739991215542,0.0001,169.85,169.83,15.01797011]
[1739991215854,0.0001,169.85,169.83,20.90597011]
[1739991216153,0.0001,169.85,169.84,15.01797011]
[1739991217258,0.0001,169.85,169.84,30.03594022]
[1739991217874,0.0001,169.85,169.84,116.62374022]
[1739991218562,0.0001,169.85,169.84,117.62374022]
[1739991218967,0.0001,169.85,169.84,136.27338908]
[1739991219165,0.063,169.89,169.86,1.0]
[1739991219377,0.063,169.89,169.88,15.01797011]
[1739991220059,0.063,169.89,169.88,20.90447011]
[1739991222157,0.0001,169.89,169.88,21.90447011]
[1739991222555,0.0001,169.89,169.88,40.55411897]
[1739991225184,0.0001,169.89,169.88,121.25411897]
[1739991225852,0.0001,169.89,169.88,122.25411897]
[1739991226058,0.0001,169.89,169.88,121.25411897]
[1739991227175,0.063,169.95,169.92,20.5979]
[1739991227367,0.063,169.95,169.94,15.01797011]
[1739991228759,0.063,169.95,169.94,20.90237011]
[1739991228960,0.063,169.95,169.92,80.7]
[1739991229162,0.063,169.95,169.87,1.0]
[1739991229163,0.063,169.95,169.9,15.01797011]
[1739991229472,15.01797011,169.93,169.87,101.60467011]
[1739991229668,6.1882,169.94,169.87,101.60467011]
[1739991229669,6.1882,169.94,169.89,15.01797011]
[1739991229860,6.1882,169.94,169.9,15.01797011]
[1739991231664,83.063,169.95,169.92,15.01797011]
[1739991231865,83.063,169.95,169.94,15.01797011]
[1739991231866,0.063,169.95,169.94,15.01797011]
[1739991232965,0.063,169.95,169.94,20.90237011]
[1739991233494,0.063,169.95,169.94,15.01797011]
[1739991233677,0.063,169.95,169.94,20.90237011]
[1739991233877,0.063,169.95,169.93,15.01797011]
[1739991234075,0.063,169.95,169.91,15.01797011]
[1739991234395,0.063,169.95,169.89,5.8861]
[1739991234396,15.01797011,169.94,169.88,20.90437011]
[1739991234586,19.55797011,169.94,169.88,20.90437011]
[1739991235395,4.54,169.94,169.88,20.90437011]
[1739991235979,4.54,169.94,169.88,5.8864]
[1739991236184,16.63577011,169.93,169.88,5.9164]
[1739991236508,1.6178,169.93,169.89,15.01797011]
[1739991237414,1.6178,169.93,169.89,20.90377011]
[1739991237610,4.54,169.94,169.91,15.01797011]
[1739991237774,89.3157,169.95,169.92,15.01797011]
[1739991237775,83.063,169.95,169.92,15.01797011]
[1739991237979,0.063,169.95,169.93,15.01797011]
[1739991238409,0.063,169.95,169.92,15.01797011]
[1739991238978,0.063,169.95,169.9,15.01797011]
[1739991239302,0.063,169.95,169.9,20.90347011]
[1739991239508,0.063,169.95,169.9,15.01797011]
[1739991239688,15.08097011,169.95,169.89,20.90377011]
[1739991240276,0.063,169.95,169.9,15.01797011]
[1739991240481,0.063,169.95,169.89,5.8858]
[1739991240482,0.063,169.95,169.91,15.01797011]
[1739991241579,0.063,169.95,169.92,5.8851]
[1739991241778,0.063,169.95,169.92,20.90307011]
[1739991244581,0.063,169.95,169.93,15.01797011]
[1739991246704,0.063,169.95,169.92,5.8851]
[1739991246705,0.063,169.95,169.89,5.8861]
[1739991246907,0.063,169.95,169.9,15.01797011]
[1739991248007,0.063,169.95,169.9,20.90357011]
[1739991248981,0.063,169.95,169.89,15.01797011]
[1739991249185,0.063,169.95,169.9,15.01797011]
[1739991249705,0.063,169.95,169.91,5.8854]
[1739991249903,0.063,169.95,169.92,15.01797011]
[1739991250106,0.063,169.95,169.93,15.01797011]
[1739991250506,0.063,169.95,169.92,15.01797011]
[1739991252200,0.063,169.95,169.89,20.90407011]
[1739991252890,0.063,169.95,169.9,15.01797011]
[1739991253290,0.063,169.95,169.9,20.90357011]
[1739991254502,0.063,169.95,169.9,5.8856]
[1739991254704,0.063,169.95,169.89,15.01797011]
[1739991254902,15.08097011,169.95,169.88,15.04797011]
[1739991255100,15.01797011,169.93,169.88,5.9164]
[1739991256213,25.44287011,169.93,169.88,0.03]
[1739991257319,108.44287011,169.93,169.88,0.03]
[1739991257625,21.36997011,169.92,169.88,0.03]
[1739991258415,6.352,169.92,169.88,0.03]
[1739991259016,12.2372,169.92,169.88,0.03]
[1739991259216,6.352,169.92,169.88,0.03]
[1739991259402,27.25507011,169.92,169.88,0.03]
[1739991260020,6.352,169.92,169.88,0.03]
[1739991260396,21.36997011,169.92,169.88,0.03]
[1739991260918,104.36997011,169.92,169.88,0.03]
[1739991261323,110.25507011,169.92,169.88,0.03]
[1739991261714,15.01797011,169.9,169.88,0.03]
[1739991261918,98.01797011,169.9,169.88,0.03]
[1739991262116,83.0,169.9,169.88,0.03]
[1739991263434,83.0,169.9,169.88,9.63115214]
[1739991263731,83.0,169.9,169.89,9.60115214]
[1739991264427,4.603,169.95,169.89,9.60115214]
[1739991264613,4.603,169.95,169.9,9.60115214]
[1739991265329,0.063,169.95,169.91,9.60115214]
[1739991265526,0.063,169.95,169.94,9.60115214]
[1739991266240,0.063,169.95,169.9,101.3001]
[1739991266426,0.063,169.95,169.89,5.8861]
[1739991266609,0.063,169.95,169.9,14.99236223]
[1739991267230,0.063,169.95,169.91,14.99236223]
[1739991267526,0.063,169.95,169.89,14.99236223]
[1739991267527,87.603,169.95,169.89,14.99236223]
[1739991267931,87.603,169.95,169.9,14.99236223]
[1739991268925,102.59536223,169.95,169.89,20.87846223]
[1739991269232,87.603,169.95,169.89,20.87846223]
[1739991269612,102.59536223,169.95,169.89,20.87846223]
[1739991269810,87.603,169.95,169.89,20.87846223]
[1739991270012,87.603,169.95,169.92,14.99236223]
[1739991270524,87.603,169.95,169.91,14.99236223]
[1739991271307,87.603,169.95,169.91,20.87766223]
[1739991271731,87.603,169.95,169.92,14.99236223]
[1739991271936,83.063,169.95,169.93,14.99236223]
[1739991272628,0.063,169.95,169.93,14.99236223]
[1739991273030,0.063,169.95,169.91,14.99236223]
[1739991274335,0.063,169.95,169.9,14.99236223]
[1739991274535,15.05536223,169.95,169.89,14.99236223]
[1739991275332,0.063,169.95,169.92,14.99236223]
[1739991275521,0.063,169.95,169.91,14.99236223]
[1739991276215,15.05536223,169.95,169.89,20.87836223]
[1739991276417,0.063,169.95,169.9,14.99236223]
[1739991277826,0.063,169.95,169.93,14.99236223]
[1739991278027,0.063,169.95,169.94,14.99236223]
[1739991278425,0.063,169.95,169.94,95.69236223]
[1739991278723,0.0001,169.95,169.94,101.57676223]
[1739991281535,0.0001,169.95,169.94,20.87676223]
[1739991284652,0.063,169.98,169.97,14.99236223]
[1739991286243,0.063,169.98,169.97,20.87566223]
[1739991288758,0.0001,169.98,169.97,20.87566223]
[1739991291056,0.0001,169.99,169.97,20.87566223]
[1739991291228,0.0001,169.99,169.98,14.99236223]
[1739991292731,0.0001,169.99,169.98,20.87536223]
[1739991293627,0.0001,169.99,169.98,101.57536223]
[1739991294848,0.0001,169.99,169.98,97.36031118]
[1739991295045,0.0001,169.99,169.98,118.00996004]
[1739991295247,0.063,170.02,170.01,20.0]
[1739991295546,0.0001,170.02,170.01,154.5865559]
[1739991295951,83.063,170.12,170.01,175.23620476]
[1739991296128,83.063,170.12,170.05,10.77731118]
[1739991296724,83.063,170.12,170.05,22.71164602]
[1739991299338,0.0001,170.06,170.05,22.71164602]
[1739991299546,0.0001,170.06,170.05,42.36129488]
[1739991300357,0.063,170.12,170.08,20.0]
[1739991300571,0.063,170.12,170.11,16.83104602]
[1739991301433,0.063,170.12,170.11,22.70954602]
[1739991303258,0.063,170.12,170.09,5.8792]
[1739991304960,16.89404602,170.12,170.07,5.8796]
[1739991305361,16.89404602,170.12,170.06,5.8802]
[1739991305546,18.36904602,170.1,170.05,5.8805]
[1739991305748,1.538,170.1,170.05,22.71154602]
[1739991305940,0.063,170.12,170.08,16.83104602]
[1739991306147,0.063,170.12,170.09,16.83104602]
[1739991306745,0.063,170.12,170.1,16.83104602]
[1739991307871,0.063,170.12,170.11,5.8785]
[1739991308049,0.063,170.12,170.09,16.83104602]
[1739991308248,0.063,170.12,170.08,16.83104602]
[1739991308448,0.063,170.12,170.07,16.83104602]
[1739991309456,16.89404602,170.12,170.05,22.71164602]
[1739991309871,16.89404602,170.12,170.06,16.83104602]
[1739991310170,0.063,170.12,170.09,16.83104602]
[1739991310355,0.063,170.12,170.07,16.83104602]
[1739991310555,16.89404602,170.12,170.06,16.83104602]
[1739991310767,16.83104602,170.11,170.05,22.71164602]
[1739991311060,16.83104602,170.11,170.03,2.99805664]
[1739991311061,23.32394602,170.1,170.04,5.8808]
[1739991311257,23.32394602,170.1,170.04,22.71184602]
[1739991312169,6.4929,170.1,170.06,16.83104602]
[1739991312370,83.0,170.11,170.07,16.83104602]
[1739991312553,83.0,170.11,170.08,16.83104602]
[1739991312751,0.063,170.12,170.09,16.83104602]
[1739991313082,0.063,170.12,170.1,16.83104602]
[1739991313281,0.063,170.12,170.11,16.83104602]
[1739991314063,0.063,170.12,170.11,22.70954602]
[1739991314752,0.063,170.12,170.11,103.40954602]
[1739991317582,0.063,170.13,170.11,103.40954602]
[1739991317766,0.063,170.13,170.12,16.83104602]
[1739991318371,0.0001,170.13,170.12,36.48069488]
[1739991318576,0.0001,170.13,170.12,43.37669488]
[1739991318777,0.0001,170.13,170.12,124.07669488]
[1739991319378,0.0001,170.13,170.12,129.95489488]
[1739991319676,0.0001,170.13,170.12,127.95489488]
[1739991319856,0.0001,170.13,170.12,103.40924602]
[1739991323581,0.063,170.16,170.15,22.0]
[1739991323770,0.0001,170.21,170.19,1.0]
[1739991323965,1.5047,170.28,170.2,21.7016017]
[1739991324278,1.5047,170.28,170.25,16.83104602]
[1739991324575,1.5047,170.28,170.24,16.83104602]
[1739991324778,1.5047,170.28,170.23,16.83104602]
[1739991325182,1.5047,170.28,170.22,16.83104602]
[1739991325600,1.2847,170.28,170.23,16.83104602]
[1739991325769,1.2847,170.28,170.24,5.874]
[1739991326365,16.83104602,170.25,170.18,5.8761]
[1739991326666,16.83104602,170.22,170.18,5.8761]
[1739991327295,4.52,170.24,170.18,5.8761]
[1739991327470,4.52,170.24,170.19,16.83104602]
[1739991327672,4.52,170.24,170.2,16.83104602]
[1739991327872,4.52,170.24,170.21,5.875]
[1739991328986,22.63574602,170.28,170.22,16.83104602]
[1739991329167,5.8047,170.28,170.22,16.83104602]
[1739991329370,5.8047,170.28,170.24,16.83104602]
[1739991329586,5.8047,170.28,170.25,16.83104602]
[1739991329984,5.8047,170.28,170.25,22.70444602]
[1739991331698,5.8047,170.28,170.22,22.70574602]
[1739991331902,16.83104602,170.27,170.21,5.8749]
[1739991332082,16.83104602,170.27,170.21,22.70594602]
[1739991332283,22.63574602,170.28,170.22,16.83104602]
[1739991332483,5.8047,170.28,170.23,16.83104602]
[1739991332686,5.8047,170.28,170.24,16.83104602]
[1739991333289,0.063,170.3,170.27,16.83104602]
[1739991333494,0.063,170.3,170.28,16.83104602]
[1739991335495,0.063,170.3,170.27,16.83104602]
[1739991335683,0.063,170.3,170.22,95.3868]
[1739991335684,16.83104602,170.28,170.23,5.8744]
[1739991336289,16.83104602,170.29,170.23,5.8744]
[1739991336473,83.063,170.3,170.24,16.83104602]
[1739991336674,83.063,170.3,170.25,16.83104602]
[1739991336875,83.063,170.3,170.23,20.5604]
[1739991337092,83.063,170.3,170.25,16.83104602]
[1739991337612,99.89404602,170.3,170.24,16.83104602]
[1739991337847,16.83104602,170.28,170.22,97.53104602]
[1739991338106,16.83104602,170.27,170.22,86.5746]
[1739991338481,4.52,170.28,170.22,86.5746]
[1739991338482,21.35104602,170.28,170.22,86.5746]
[1739991338978,4.52,170.28,170.22,103.40564602]
[1739991339184,21.35104602,170.28,170.22,103.40564602]
[1739991339505,21.35104602,170.28,170.22,86.5746]
[1739991339877,21.35104602,170.28,170.22,103.40564602]
[1739991340701,87.583,170.3,170.25,16.83104602]
[1739991341095,0.03,170.28,170.25,16.83104602]
[1739991341495,0.03,170.28,170.24,16.83104602]
[1739991341903,0.03,170.28,170.23,16.83104602]
[1739991342106,0.03,170.28,170.25,16.83104602]
[1739991343090,0.03,170.28,170.26,16.83104602]
[1739991343495,0.03,170.28,170.25,16.83104602]
[1739991344088,0.03,170.28,170.26,5.8733]
[1739991344377,0.03,170.28,170.26,22.70434602]
[1739991347608,0.03,170.28,170.24,5.874]
[1739991347908,0.03,170.28,170.24,22.70504602]
[1739991348388,0.03,170.28,170.24,5.874]
[1739991348585,16.86104602,170.28,170.22,103.46864602]
[1739991348909,16.86104602,170.28,170.22,86.6376]
[1739991349914,16.83104602,170.27,170.22,86.6376]
[1739991350111,16.86104602,170.28,170.22,103.46864602]
[1739991350285,0.03,170.28,170.22,103.46864602]
[1739991350705,0.03,170.28,170.22,86.6376]
[1739991350922,0.03,170.28,170.23,16.83104602]
[1739991351320,0.03,170.28,170.22,103.46864602]
[1739991351510,16.86104602,170.28,170.22,86.6376]
[1739991352004,0.03,170.28,170.22,103.46864602]
[1739991352820,83.03,170.28,170.22,22.76864602]
[1739991354413,23.11104602,170.26,170.22,5.9376]
[1739991354715,1.5086,170.25,170.22,5.9376]
[1739991354915,1.5086,170.25,170.22,0.063]
[1739991355586,1.5086,170.25,170.22,16.89404602]
[1739991357315,1.5086,170.25,170.23,5.8744]
[1739991357908,1.5086,170.25,170.22,16.89404602]
[1739991358110,1.5086,170.25,170.22,0.063]
[1739991361428,1.5086,170.25,170.22,16.89404602]
[1739991361930,6.28,170.26,170.22,16.89404602]
[1739991362439,83.0,170.27,170.24,16.83104602]
[1739991362731,0.03,170.28,170.26,16.83104602]
[1739991362896,0.03,170.28,170.27,16.83104602]
[1739991363617,0.03,170.28,170.24,22.70474602]
[1739991363926,0.03,170.28,170.23,5.8743]
[1739991364226,0.03,170.28,170.25,16.83104602]
[1739991365115,0.03,170.28,170.24,16.89404602]
[1739991365836,23.00244602,170.27,170.24,0.063]
[1739991366034,29.39254602,170.27,170.24,0.063]
[1739991366402,16.83104602,170.26,170.24,0.063]
[1739991367237,29.39254602,170.27,170.24,0.063]
[1739991367727,83.0,170.26,170.24,0.063]
[1739991368413,118.48069488,170.25,170.24,0.063]
[1739991369036,26.35854886,170.23,170.11,97.59404602]
[1739991369197,16.83104602,170.19,170.12,22.70914602]
[1739991369401,4.52,170.18,170.12,22.70914602]
[1739991369919,16.83104602,170.16,170.11,0.063]
[1739991370209,99.83104602,170.17,170.11,0.063]
[1739991370412,16.83104602,170.16,170.11,0.063]
[1739991370823,83.0,170.17,170.11,0.063]
[1739991370824,16.83104602,170.12,170.11,0.063]
[1739991371130,40.00069488,170.12,170.11,0.063]
[1739991372716,50.11218061,170.12,170.11,0.063]
[1739991373104,193.29038061,170.12,170.11,0.063]
[1739991373501,187.41218061,170.12,170.11,0.063]
[1739991373817,193.29038061,170.12,170.11,0.063]
[1739991375910,194.29038061,170.12,170.11,0.063]
[1739991376119,20.0,170.09,170.06,0.03]
[1739991376321,45.59218061,170.07,170.06,0.03]
[1739991378428,51.96538061,170.07,170.06,0.03]
[1739991378735,53.54618061,170.07,170.06,0.03]
[1739991379117,59.42608061,170.07,170.06,0.03]
[1739991381128,26.60364886,170.07,170.06,0.03]
[1739991381440,4.52,170.07,170.06,0.03]
[1739991382032,184.24253175,170.09,170.06,0.03]
[1739991382226,4.52,170.07,170.06,0.03]
[1739991382827,23.16964886,170.07,170.06,0.03]
[1739991383239,50.11218061,170.07,170.06,0.03]
[1739991383407,23.16964886,170.07,170.06,0.03]
[1739991385032,4.52,170.07,170.06,0.03]
[1739991387046,83.0,170.1,170.06,0.03]
[1739991387340,4.52,170.1,170.07,26.94253175]
[1739991388210,4.52,170.1,170.06,0.03]
[1739991389337,4.52,170.1,170.06,32.85273175]
[1739991390147,4.52,170.1,170.06,5.9102]
[1739991390717,45.59218061,170.07,170.06,0.03]
[1739991391818,51.47208061,170.07,170.06,0.03]
[1739991392226,45.59218061,170.07,170.06,0.03]
[1739991392638,35.49849524,170.07,170.06,0.03]
[1739991394019,16.84884638,170.07,170.06,0.03]
[1739991394226,16.84884638,170.08,170.06,0.03]
[1739991395342,137.3,170.09,170.06,0.03]
[1739991395343,154.14884638,170.09,170.06,0.03]
[1739991395926,16.84884638,170.1,170.06,0.03]
[1739991396251,87.52,170.11,170.07,16.84884638]
[1739991396430,87.52,170.11,170.06,0.03]
[1739991396431,4.52,170.11,170.08,16.84884638]
[1739991396828,0.063,170.12,170.09,16.84884638]
[1739991397146,0.063,170.12,170.08,16.84884638]
[1739991397531,0.063,170.12,170.08,22.72804638]
[1739991397950,0.063,170.12,170.08,5.8792]
[1739991399653,26.93030313,170.11,170.06,0.03]
[1739991400337,109.93030313,170.11,170.06,5.9101]
[1739991400539,83.0,170.11,170.06,5.9101]
[1739991401541,83.0,170.11,170.1,26.93030313]
[1739991401848,0.063,170.12,170.1,26.93030313]
[1739991402040,0.063,170.12,170.11,26.93030313]
[1739991402359,87.52,170.26,170.14,20.0]
[1739991402561,26.93030313,170.24,170.18,26.93030313]
[1739991403242,26.93030313,170.22,170.15,26.93030313]
[1739991403444,26.93030313,170.21,170.15,26.93030313]
[1739991403765,45.57995199,170.22,170.15,32.80740313]
[1739991404562,45.57995199,170.22,170.16,26.93030313]
[1739991404861,26.93030313,170.2,170.15,5.8771]
[1739991405363,31.45030313,170.2,170.15,5.8771]
[1739991405867,4.52,170.2,170.16,26.93030313]
[1739991406241,4.52,170.2,170.18,26.93030313]
[1739991406557,4.52,170.2,170.17,26.93030313]
[1739991406962,83.0,170.21,170.18,26.93030313]
[1739991407158,83.0,170.21,170.19,26.93030313]
[1739991407345,18.64964886,170.23,170.17,26.93030313]
[1739991407550,26.93030313,170.22,170.16,26.93030313]
[1739991407857,26.93030313,170.22,170.17,5.8764]
[1739991408236,26.93030313,170.2,170.15,5.8769]
[1739991408944,26.93030313,170.19,170.15,5.8769]
[1739991409158,45.57995199,170.18,170.12,5.8782]
[1739991409460,26.93030313,170.19,170.13,26.93030313]
[1739991409646,26.93030313,170.2,170.13,26.93030313]
[1739991409854,83.0,170.21,170.15,26.93030313]
[1739991410065,18.64964886,170.2,170.15,26.93030313]
[1739991410936,18.64964886,170.2,170.16,5.8768]
[1739991411683,83.0,170.21,170.16,32.80710313]
[1739991412163,109.93030313,170.21,170.15,32.80740313]
[1739991412845,83.0,170.21,170.15,32.80740313]
[1739991413049,87.52,170.21,170.15,32.80740313]
[1739991413274,87.52,170.21,170.16,26.93030313]
[1739991414368,87.52,170.21,170.17,5.8764]
[1739991414865,4.52,170.21,170.17,32.80670313]